fUSD/lending_fUSD_20241024
["ID","MTS","AMOUNT","RATE_DAILY","PERIOD"]
[340745939,1729771841127,-500.0,0.00068493,120]
[340745941,1729771841136,-500.0,0.00068493,120]
[340745943,1729771841145,-500.0,0.00068493,120]
[340745945,1729771841154,-505.51087137,0.00068493,120]
[340745947,1729771841164,-1940.38,0.00068493,120]
[340745949,1729771841175,-1940.38,0.00068493,120]
[340745951,1729771841185,-1940.38,0.00068493,120]
[340745953,1729771841194,-1940.38,0.00068493,120]
[340745955,1729771841203,-1940.38,0.00068493,120]
[340745957,1729771841212,-1940.38,0.00068493,120]
[340745958,1729771841221,-1940.38,0.00068493,120]
[340745960,1729771841230,-1940.38,0.00068493,120]
[340745962,1729771841241,-1940.38,0.00068493,120]
[340745964,1729771841250,-1940.38,0.00068493,120]
[340745966,1729771841260,-1940.38,0.00068493,120]
[340745968,1729771841268,-1940.38,0.00068493,120]
[340745970,1729771841279,-1940.38,0.00068493,120]
[340745972,1729771841288,-1940.38,0.00068493,120]
[340745974,1729771841300,-1940.38,0.00068493,120]
[340745976,1729771841309,-1940.38,0.00068493,120]
[340745979,1729771841321,-1940.38,0.00068493,120]
[340745981,1729771841331,-1940.38,0.00068493,120]
[340745983,1729771841341,-1940.38,0.00068493,120]
[340745985,1729771841350,-1940.38,0.00068493,120]
[340745987,1729771841362,-1940.38,0.00068493,120]
[340745988,1729771841371,-1940.38,0.00068493,120]
[340745990,1729771841382,-1940.38,0.00068493,120]
[340745993,1729771841395,-1940.53205399,0.00068493,120]
[340745995,1729771841405,-500.0,0.00068493,120]
[340745997,1729771841415,-500.0,0.00068493,120]
[340745999,1729771841427,-500.0,0.00068493,120]
[340746001,1729771841437,-500.0,0.00068493,120]
[340746003,1729771841446,-516.70317313,0.00068493,120]
[340746005,1729771841455,-500.0,0.00068493,120]
[340746007,1729771841464,-500.0,0.00068493,120]
[340746008,1729771841473,-500.0,0.00068493,120]
[340746010,1729771841482,-500.0,0.00068493,120]
[340746012,1729771841492,-500.0,0.00068493,120]
[340746014,1729771841502,-500.0,0.00068493,120]
[340746016,1729771841511,-500.0,0.00068493,120]
[340746018,1729771841520,-500.0,0.00068493,120]
[340746020,1729771841529,-500.0,0.00068493,120]
[340746022,1729771841540,-500.0,0.00068493,120]
[340746024,1729771841550,-597.2559237,0.00068493,120]
[340746026,1729771841560,-500.0,0.00068493,120]
[340746028,1729771841571,-500.0,0.00068493,120]
[340746031,1729771841581,-562.07434176,0.00068493,120]
[340746033,1729771841591,-543.26580414,0.00068493,120]
[340746034,1729771841601,-500.0,0.00068493,120]
[340746036,1729771841610,-500.0,0.00068493,120]
[340746039,1729771841622,-500.0,0.00068493,120]
[340746041,1729771841632,-500.0,0.00068493,120]
[340746043,1729771841642,-500.0,0.00068493,120]
[340746045,1729771841652,-500.0,0.00068493,120]
[340746047,1729771841663,-164.71217186,0.00068493,120]
[340746049,1729771841674,-519.87808368,0.00068493,120]
[340746051,1729771841682,-532.64555796,0.00068493,120]
[340746052,1729771841691,-1281.71,0.00068493,120]
[340746054,1729771841701,-1281.71,0.00068493,120]
[340746056,1729771841711,-1281.71,0.00068493,120]
[340746058,1729771841720,-1281.71,0.00068493,120]
[340746060,1729771841730,-1281.71,0.00068493,120]
[340746062,1729771841740,-1281.71,0.00068493,120]
[340746064,1729771841750,-1281.71,0.00068493,120]
[340746066,1729771841759,-1281.71,0.00068493,120]
[340746067,1729771841768,-1281.71,0.00068493,120]
[340746069,1729771841777,-1281.71,0.00068493,120]
[340746072,1729771841788,-1281.71,0.00068493,120]
[340746073,1729771841797,-1281.71,0.00068493,120]
[340746075,1729771841806,-1281.71,0.00068493,120]
[340746077,1729771841816,-1281.71,0.00068493,120]
[340746079,1729771841826,-1281.71,0.00068493,120]
[340746081,1729771841835,-1281.71,0.00068493,120]
[340746083,1729771841846,-1281.71,0.00068493,120]
[340746086,1729771841856,-1281.71,0.00068493,120]
[340746087,1729771841866,-1281.71,0.00068493,120]
[340746090,1729771841877,-1281.71,0.00068493,120]
[340746092,1729771841886,-1281.71,0.00068493,120]
[340746094,1729771841895,-1281.71,0.00068493,120]
[340746096,1729771841905,-1281.71,0.00068493,120]
[340746097,1729771841916,-1281.94344588,0.00068493,120]
[340746099,1729771841926,-500.0,0.00068493,120]
[340746101,1729771841935,-500.0,0.00068493,120]
[340746103,1729771841945,-500.0,0.00068493,120]
[340746105,1729771841955,-500.0,0.00068493,120]
[340746107,1729771841964,-500.0,0.00068493,120]
[340746109,1729771841973,-627.48509668,0.00068493,120]
[340746111,1729771841983,-2085.95,0.00068493,120]
[340746113,1729771841994,-2085.95,0.00068493,120]
[340746115,1729771842004,-2085.95,0.00068493,120]
[340746117,1729771842013,-500.0,0.00068493,120]
[340746119,1729771842022,-2085.95,0.00068493,120]
[340746121,1729771842031,-2085.95,0.00068493,120]
[340746123,1729771842040,-500.0,0.00068493,120]
[340746125,1729771842050,-2085.95,0.00068493,120]
[340746126,1729771842059,-2085.95,0.00068493,120]
[340746128,1729771842068,-2085.95,0.00068493,120]
[340746130,1729771842078,-500.0,0.00068493,120]
[340746132,1729771842087,-500.0,0.00068493,120]
[340746134,1729771842097,-500.0,0.00068493,120]
[340746136,1729771842107,-227.98209437,0.00068493,120]
[340746138,1729771842117,-500.0,0.00068493,120]
[340746140,1729771842127,-500.0,0.00068493,120]
[340746142,1729771842136,-500.0,0.00068493,120]
[340746144,1729771842147,-157.70597691,0.00068493,120]
[340746146,1729771842157,-500.0,0.00068493,120]
[340746148,1729771842168,-500.0,0.00068493,120]
[340746150,1729771842178,-500.0,0.00068493,120]
[340746152,1729771842187,-508.72183817,0.00068493,120]
[340746154,1729771842196,-520.53628019,0.00068493,120]
[340746156,1729771842207,-500.0,0.00068493,120]
[340746158,1729771842216,-500.0,0.00068493,120]
[340746160,1729771842225,-199.30380468,0.00068493,120]
[340746162,1729771842236,-500.0,0.00068493,120]
[340746164,1729771842247,-500.0,0.00068493,120]
[340746166,1729771842257,-500.0,0.00068493,120]
[340746168,1729771842267,-500.0,0.00068493,120]
[340746170,1729771842276,-500.0,0.00068493,120]
[340746172,1729771842286,-500.0,0.00068493,120]
[340746174,1729771842296,-500.0,0.00068493,120]
[340746176,1729771842307,-500.0,0.00068493,120]
[340746178,1729771842317,-500.0,0.00068493,120]
[340746180,1729771842327,-500.0,0.00068493,120]
[340746182,1729771842337,-500.0,0.00068493,120]
[340746184,1729771842347,-500.0,0.00068493,120]
[340746186,1729771842357,-500.0,0.00068493,120]
[340746188,1729771842368,-500.0,0.00068493,120]
[340746191,1729771842380,-500.0,0.00068493,120]
[340746193,1729771842390,-500.0,0.00068493,120]
[340746195,1729771842399,-607.071121,0.00068493,120]
[340746197,1729771842408,-500.0,0.00068493,120]
[340746199,1729771842418,-500.0,0.00068493,120]
[340746201,1729771842427,-241.5855076,0.00068493,120]
[340746203,1729771842437,-500.0,0.00068493,120]
[340746205,1729771842446,-511.77934918,0.00068493,120]
[340746207,1729771842455,-500.0,0.00068493,120]
[340746208,1729771842464,-500.0,0.00068493,120]
[340746210,1729771842473,-500.0,0.00068493,120]
[340746212,1729771842484,-500.0,0.00068493,120]
[340746214,1729771842495,-500.0,0.00068493,120]
[340746216,1729771842509,-420.10508232,0.00068493,120]
[340746218,1729771842518,-151.0,0.00068493,120]
[340746220,1729771842527,-500.0,0.00068493,120]
[340746222,1729771842537,-500.0,0.00068493,120]
[340746224,1729771842546,-500.0,0.00068493,120]
[340746226,1729771842556,-500.0,0.00068493,120]
[340746228,1729771842565,-237.8740893,0.00068493,120]
[340746230,1729771842574,-751.87,0.00068493,120]
[340746232,1729771842583,-751.87,0.00068493,120]
[340746234,1729771842592,-396.57009547,0.00068493,120]
[340746236,1729771842602,-751.87,0.00068493,120]
[340746238,1729771842611,-751.87,0.00068493,120]
[340746240,1729771842620,-751.87,0.00068493,120]
[340746242,1729771842630,-751.87,0.00068493,120]
[340746243,1729771842639,-751.87,0.00068493,120]
[340746245,1729771842648,-751.87,0.00068493,120]
[340746247,1729771842657,-500.0,0.00068493,120]
[340746249,1729771842666,-500.0,0.00068493,120]
[340746251,1729771842675,-500.0,0.00068493,120]
[340746253,1729771842684,-500.0,0.00068493,120]
[340746255,1729771842694,-500.0,0.00068493,120]
[340746257,1729771842702,-500.0,0.00068493,120]
[340746259,1729771842712,-500.0,0.00068493,120]
[340746261,1729771842721,-500.0,0.00068493,120]
[340746263,1729771842732,-500.0,0.00068493,120]
[340746265,1729771842742,-500.0,0.00068493,120]
[340746267,1729771842752,-500.0,0.00068493,120]
[340746269,1729771842761,-500.0,0.00068493,120]
[340746271,1729771842770,-500.0,0.00068493,120]
[340746273,1729771842783,-500.0,0.00068493,120]
[340746275,1729771842793,-500.0,0.00068493,120]
[340746277,1729771842803,-500.0,0.00068493,120]
[340746279,1729771842812,-500.0,0.00068493,120]
[340746281,1729771842822,-499.13121196,0.00068493,120]
[340746283,1729771842831,-500.0,0.00068493,120]
[340746285,1729771842840,-500.0,0.00068493,120]
[340746287,1729771842850,-500.0,0.00068493,120]
[340746289,1729771842859,-500.0,0.00068493,120]
[340746291,1729771842869,-500.0,0.00068493,120]
[340746294,1729771842878,-500.0,0.00068493,120]
[340746296,1729771842888,-500.0,0.00068493,120]
[340746298,1729771842898,-500.0,0.00068493,120]
[340746301,1729771842907,-500.0,0.00068493,120]
[340746303,1729771842921,-534.14382381,0.00068493,120]
[340746305,1729771842930,-500.0,0.00068493,120]
[340746307,1729771842939,-500.0,0.00068493,120]
[340746309,1729771842949,-500.0,0.00068493,120]
[340746311,1729771842959,-500.0,0.00068493,120]
[340746313,1729771842968,-500.0,0.00068493,120]
[340746315,1729771842978,-391.56918362,0.00068493,120]
[340746317,1729771842988,-500.0,0.00068493,120]
[340746319,1729771842999,-500.0,0.00068493,120]
[340746321,1729771843009,-500.0,0.00068493,120]
[340746323,1729771843018,-500.0,0.00068493,120]
[340746325,1729771843028,-500.0,0.00068493,120]
[340746327,1729771843037,-500.0,0.00068493,120]
[340746329,1729771843047,-500.0,0.00068493,120]
[340746331,1729771843056,-500.0,0.00068493,120]
[340746332,1729771843066,-815.34,0.00068493,120]
[340746334,1729771843075,-815.34,0.00068493,120]
[340746336,1729771843084,-815.34,0.00068493,120]
[340746338,1729771843094,-815.34,0.00068493,120]
[340746340,1729771843103,-555.27740259,0.00068493,120]
[340746343,1729771843126,-260.06259741,0.00068493,120]
[340746345,1729771843135,-815.34,0.00068493,120]
[340746347,1729771843145,-815.34,0.00068493,120]
[340746349,1729771843154,-815.34,0.00068493,120]
[340746351,1729771843163,-557.62434182,0.00068493,120]
[340746353,1729771843173,-500.0,0.00068493,120]
[340746355,1729771843182,-97.87210316,0.00068493,120]
[340746357,1729771843195,-402.12789684,0.00068493,120]
[340746359,1729771843227,-167.11829231,0.00068493,120]
[340746361,1729771843338,-127.98581847,0.00068493,120]
[340746363,1729771843435,-500.0,0.00068493,120]
[340746365,1729771843530,-500.0,0.00068493,120]
[340746367,1729771843633,-570.7396664,0.00068493,120]
[340746369,1729771843760,-500.0,0.00068493,120]
[340746372,1729771843850,-500.0,0.00068493,120]
[340746373,1729771843949,-500.0,0.00068493,120]
[340746375,1729771844026,-21.25017613,0.00068493,120]
[340746379,1729771844124,-478.74982387,0.00068493,120]
[340746381,1729771844135,-408.36998996,0.00068493,120]
[340746383,1729771844147,-91.63001004,0.00068493,120]
[340746385,1729771844157,-492.73261589,0.00068493,120]
[340746387,1729771844169,-7.26738411,0.00068493,120]
[340746389,1729771844178,-500.0,0.00068493,120]
[340746391,1729771844188,-500.0,0.00068493,120]
[340746393,1729771844197,-500.0,0.00068493,120]
[340746394,1729771844207,-500.0,0.00068493,120]
[340746395,1729771844218,-500.0,0.00068493,120]
[340746396,1729771844228,-500.0,0.00068493,120]
[340746397,1729771844237,-553.14929721,0.00068493,120]
[340746398,1729771844248,-500.0,0.00068493,120]
[340746399,1729771844258,-525.20676086,0.00068493,120]
[340746400,1729771844267,-500.0,0.00068493,120]
[340746401,1729771844277,-500.0,0.00068493,120]
[340746402,1729771844287,-500.0,0.00068493,120]
[340746403,1729771844296,-500.0,0.00068493,120]
[340746404,1729771844306,-32.96460485,0.00068493,120]
[340746405,1729771844318,-467.03539515,0.00068493,120]
[340746406,1729771844328,-36.44332765,0.00068493,120]
[340746407,1729771844339,-139.44042635,0.00068493,120]
[340746408,1729771844349,-500.0,0.00068493,120]
[340746409,1729771844358,-276.42295849,0.00068493,120]
[340746410,1729771844370,-223.57704151,0.00068493,120]
[340746411,1729771844380,-32.65468119,0.00068493,120]
[340746412,1729771844392,-467.34531881,0.00068493,120]
[340746413,1729771844402,-500.0,0.00068493,120]
[340746414,1729771844411,-500.0,0.00068493,120]
[340746416,1729771844421,-500.0,0.00068493,120]
[340746417,1729771844430,-500.0,0.00068493,120]
[340746418,1729771844440,-500.0,0.00068493,120]
[340746419,1729771844449,-493.53347871,0.00068493,120]
[340746420,1729771844459,-641.97,0.00068493,120]
[340746421,1729771844468,-641.97,0.00068493,120]
[340746422,1729771844477,-641.97,0.00068493,120]
[340746423,1729771844486,-641.97,0.00068493,120]
[340746424,1729771844498,-641.97,0.00068493,120]
[340746425,1729771844507,-641.97,0.00068493,120]
[340746426,1729771844516,-241.30120248,0.00068493,120]
[340746427,1729771844529,-400.66879752,0.00068493,120]
[340746428,1729771844540,-641.97,0.00068493,120]
[340746429,1729771844550,-37.16120748,0.00068493,120]
[340746430,1729771844561,-405.56797213,0.00068493,120]
[340746431,1729771844573,-57.27082039,0.00068493,120]
[340746432,1729771844583,-290.50992839,0.00068493,120]
[340746433,1729771844595,-236.22638113,0.00068493,120]
[340746434,1729771844604,-6000.0,0.000685,120]
[340746435,1729771844614,-6000.0,0.000685,120]
[340746436,1729771844624,-443.66,0.000685,120]
[340746437,1729771844635,-4369.16010578,0.00068543,120]
[340746438,1729771844647,-323.73989422,0.00068543,120]
[340746439,1729771844764,-150.0,0.00068552,120]
[340746440,1729771844775,-336.40714162,0.00068554,120]
[340746441,1729771844788,-1693.31285838,0.00068554,120]
[340746443,1729771844799,-3827.11898492,0.00068566,120]
[340746445,1729771844811,-540.18000005,0.00068566,120]
[340746448,1729771844835,-322.85018007,0.00068566,120]
[340746451,1729771844849,-309.85083496,0.00068566,120]
[340746453,1729771844859,-23794.75955044,0.00068586,120]
[340746455,1729771844872,-307.46014093,0.00068586,120]
[340746459,1729771844899,-897.78030863,0.00068586,120]
[340746461,1729771844910,-225.26639966,0.00068589,120]
[340746463,1729771844926,-2470.04066262,0.00068616,120]
[340746465,1729771844939,-332.13228803,0.00068616,120]
[340746469,1729771844969,-2197.82704935,0.00068616,120]
[340746471,1729771844980,-800.0,0.00068618,120]
[340746473,1729771844991,-150.0,0.00068697,120]
[340746475,1729771845003,-3280.45795053,0.00068698,120]
[340746478,1729771845016,-1719.54204947,0.00068698,120]
[340746480,1729771845026,-4411.06,0.00068759,120]
[340746482,1729771845036,-150.0,0.00068767,120]
[340746484,1729771845047,-150.0,0.00068767,120]
[340746486,1729771845058,-150.0,0.00068767,120]
[340746488,1729771845068,-150.0,0.00068767,120]
[340746490,1729771845079,-150.0,0.00068767,120]
[340746492,1729771845090,-1979.6,0.00068784,120]
[340746494,1729771845100,-518.81,0.00068792,120]
[340746496,1729771845111,-6000.0,0.000688,120]
[340746498,1729771845120,-6000.0,0.000688,120]
[340746500,1729771845132,-443.659999,0.000688,120]
[340746502,1729771845142,-5000.0,0.00068803,120]
[340746504,1729771845152,-4301.46,0.00068813,120]
[340746506,1729771845162,-200.0,0.00068815,120]
[340746508,1729771845172,-150.0,0.00068841,120]
[340746510,1729771845183,-2321.28711846,0.00068868,120]
[340746512,1729771845195,-2678.71288154,0.00068868,120]
[340746514,1729771845206,-1261.21151439,0.00068873,120]
[340746516,1729771845218,-824.73848561,0.00068873,120]
[340746518,1729771845228,-111.15957139,0.00068874,120]
[340746521,1729771845241,-883.32723249,0.00068874,120]
[340746523,1729771845254,-593.36324576,0.00068874,120]
[340746525,1729771845267,-2694.80145435,0.00068874,120]
[340746528,1729771845281,-638.09116872,0.00068874,120]
[340746530,1729771845291,-87.97481552,0.000689,120]
[340746532,1729771845304,-373.49875324,0.000689,120]
[340746536,1729771845336,-5538.52643124,0.000689,120]
[340746538,1729771845345,-6000.0,0.000689,120]
[340746540,1729771845355,-443.659999,0.000689,120]
[340746541,1729771845365,-1000.0,0.000689,25]
[340746543,1729771845375,-775.60655249,0.000689,2]
[340746545,1729771845384,-1623.62185877,0.000689,2]
[340746548,1729771845396,-1148.62794469,0.000689,2]
[340746550,1729771845406,-262.01226633,0.00068931,2]
[340746552,1729771845417,-628.21490368,0.00068952,5]
[340746554,1729771845431,-297.59077079,0.00068952,5]
[340746556,1729771845444,-427.18389055,0.00068952,5]
[340746558,1729771845457,-93.80232138,0.00068952,5]
[340746560,1729771845467,-1018.31021508,0.00068952,5]
[340746562,1729771845480,-1322.54473212,0.00068952,5]
[340746564,1729771845490,-1576.47541479,0.00068952,5]
[340746565,1729771845503,-16080.17841381,0.00068952,5]
[340746566,1729771845513,-5000.0,0.00068956,120]
[340746567,1729771845524,-5111.83377067,0.00068967,15]
[340746568,1729771845533,-150.0,0.00068986,120]
[340746569,1729771845543,-500.0,0.00068999,120]
[340746570,1729771845552,-500.0,0.00068999,120]
[340746571,1729771845562,-500.0,0.00068999,120]
[340746572,1729771845572,-500.0,0.00068999,120]
[340746573,1729771845583,-2085.95,0.00068999,120]
[340746574,1729771845593,-2085.95,0.00068999,120]
[340746575,1729771845603,-500.0,0.00068999,120]
[340746576,1729771845613,-500.0,0.00068999,120]
[340746577,1729771845623,-751.87,0.00068999,120]
[340746578,1729771845633,-751.87,0.00068999,120]
[340746579,1729771845643,-500.0,0.00068999,120]
[340746580,1729771845653,-500.0,0.00068999,120]
[340746581,1729771845663,-623.50811472,0.00068999,120]
[340746582,1729771845673,-298.22215471,0.00068999,120]
[340746583,1729771845682,-500.0,0.00068999,120]
[340746584,1729771845693,-500.0,0.00068999,120]
[340746585,1729771845703,-815.34,0.00068999,120]
[340746586,1729771845714,-815.34,0.00068999,120]
[340746587,1729771845723,-500.0,0.00068999,120]
[340746588,1729771845733,-500.0,0.00068999,120]
[340746589,1729771845743,-494.96294898,0.00068999,120]
[340746590,1729771845757,-5.03705102,0.00068999,120]
[340746591,1729771845767,-306.27193398,0.00068999,120]
[340746592,1729771845780,-193.72806602,0.00068999,120]
[340746593,1729771845789,-641.97,0.00068999,120]
[340746594,1729771845799,-641.97,0.00068999,120]
[340746596,1729771845808,-15035.38733382,0.00069,56]
[340746597,1729771845822,-34964.61266618,0.00069,56]
[340746598,1729771845832,-50000.0,0.00069,66]
[340746599,1729771845843,-333.99,0.00069,120]
[340746600,1729771845852,-5766.13120736,0.00069,120]
[340746601,1729771845862,-7500.0,0.00069,120]
[340746602,1729771845871,-500.0,0.00069,120]
[340746603,1729771845880,-500.0,0.00069,120]
[340746604,1729771845889,-500.0,0.00069,120]
[340746605,1729771845899,-500.0,0.00069,120]
[340746606,1729771845908,-500.0,0.00069,120]
[340746607,1729771845923,-500.0,0.00069,120]
[340746608,1729771845933,-500.0,0.00069,120]
[340746609,1729771845944,-500.0,0.00069,120]
[340746610,1729771845955,-500.0,0.00069,120]
[340746611,1729771845967,-500.0,0.00069,120]
[340746612,1729771845977,-500.0,0.00069,120]
[340746613,1729771845990,-500.0,0.00069,120]
[340746614,1729771846002,-500.0,0.00069,120]
[340746615,1729771846013,-500.0,0.00069,120]
[340746616,1729771846024,-500.0,0.00069,120]
[340746617,1729771846034,-536.7,0.00069,120]
[340746618,1729771846044,-500.0,0.00069,120]
[340746619,1729771846055,-250000.0,0.00069,120]
[340746620,1729771846067,-151.0,0.00069,120]
[340746621,1729771846077,-171697.0,0.00069,120]
[340746622,1729771846088,-150.0,0.00069131,120]
[340746623,1729771846098,-7500.0,0.00069137,120]
[340746624,1729771846108,-7500.0,0.00069275,120]
[340746625,1729771846118,-150.0,0.00069276,120]
[340746626,1729771846129,-7500.0,0.00069413,120]
[340746627,1729771846139,-150.0,0.00069421,120]
[340746628,1729771846149,-15177.8801457,0.000695,7]
[340746629,1729771846159,-7500.0,0.0006955,120]
[340746630,1729771846169,-150.0,0.00069566,120]
[340746631,1729771846179,-150.0,0.00069589,120]
[340746632,1729771846189,-150.0,0.00069589,120]
[340746633,1729771846199,-150.0,0.00069589,120]
[340746634,1729771846209,-150.0,0.00069589,120]
[340746635,1729771846218,-2000.0,0.0006965,14]
[340746636,1729771846228,-7500.0,0.00069688,120]
[340746637,1729771846238,-497.07138805,0.0006969,120]
[340746638,1729771846250,-150.0,0.0006971,120]
[340746639,1729771846260,-4920.74267271,0.00069785,120]
[340746640,1729771846270,-500.0,0.00069799,120]
[340746641,1729771846280,-500.0,0.00069799,120]
[340746642,1729771846290,-500.0,0.00069799,120]
[340746643,1729771846300,-751.87,0.00069799,120]
[340746644,1729771846311,-500.0,0.00069799,120]
[340746645,1729771846320,-500.0,0.00069799,120]
[340746646,1729771846330,-815.34,0.00069799,120]
[340746647,1729771846340,-500.0,0.00069799,120]
[340746648,1729771846350,-500.0,0.00069799,120]
[340746649,1729771846360,-641.97,0.00069799,120]
[340746650,1729771846371,-9500.0,0.000698,120]
[340746651,1729771846380,-1200.0,0.000698,25]
[340746652,1729771846390,-4920.74267271,0.00069807,120]
[340746653,1729771846401,-7500.0,0.00069825,120]
[340746654,1729771846411,-161.31060243,0.00069848,120]
[340746655,1729771846421,-150.0,0.00069855,120]
[340746656,1729771846431,-424.81,0.00069863,120]
[340746657,1729771846440,-757.04,0.00069863,120]
[340746658,1729771846450,-424.81,0.00069863,120]
[340746659,1729771846460,-757.04,0.00069863,120]
[340746660,1729771846470,-424.81,0.00069863,120]
[340746661,1729771846479,-757.04,0.00069863,120]
[340746662,1729771846489,-757.04,0.00069863,120]
[340746663,1729771846500,-424.81,0.00069863,120]
[340746664,1729771846510,-757.04,0.00069863,120]
[340746665,1729771846519,-424.81,0.00069863,120]
[340746666,1729771846529,-424.81,0.00069863,120]
[340746667,1729771846539,-757.04,0.00069863,120]
[340746668,1729771846549,-757.04,0.00069863,120]
[340746669,1729771846559,-424.81,0.00069863,120]
[340746670,1729771846568,-200.0,0.000699,25]
[340746671,1729771846578,-1155.4784941,0.00069922,6]
[340746672,1729771846587,-1869.5208169,0.00069922,6]
[340746673,1729771846597,-14101.4640522,0.00069922,6]
[340746674,1729771846607,-2085.95,0.00069947,120]
[340746675,1729771846616,-1398.1866866,0.00069947,6]
[340746676,1729771846626,-10546.2742757,0.00069947,6]
[340746677,1729771846636,-864.1651018,0.00069948,6]
[340746678,1729771846645,-572.8517095,0.00069948,6]
[340746679,1729771846654,-926.8525563,0.00069948,6]
[340746680,1729771846664,-6991.0844993,0.00069948,6]
[340746681,1729771846674,-281.5383172,0.00069952,6]
[340746682,1729771846683,-455.5184259,0.00069952,6]
[340746683,1729771846693,-3435.8947229,0.00069952,6]
[340746684,1729771846703,-7500.0,0.00069962,120]
[340746685,1729771846713,-137000.0,0.0006997,56]
[340746686,1729771846723,-500.0,0.00069979,120]
[340746687,1729771846733,-500.0,0.00069979,120]
[340746688,1729771846742,-500.0,0.00069979,120]
[340746689,1729771846754,-500.0,0.00069979,120]
[340746690,1729771846764,-2085.95,0.00069979,120]
[340746691,1729771846774,-2085.95,0.00069979,120]
[340746692,1729771846784,-500.0,0.00069979,120]
[340746693,1729771846794,-500.0,0.00069979,120]
[340746694,1729771846804,-751.87,0.00069979,120]
[340746695,1729771846815,-751.87,0.00069979,120]
[340746696,1729771846826,-500.0,0.00069979,120]
[340746697,1729771846836,-370.33296638,0.00069979,120]
[340746698,1729771846845,-500.0,0.00069979,120]
[340746699,1729771846855,-623.14022881,0.00069979,120]
[340746700,1729771846865,-815.34,0.00069979,120]
[340746701,1729771846875,-815.34,0.00069979,120]
[340746702,1729771846885,-500.0,0.00069979,120]
[340746703,1729771846895,-500.0,0.00069979,120]
[340746704,1729771846905,-500.0,0.00069979,120]
[340746705,1729771846917,-500.0,0.00069979,120]
[340746706,1729771846928,-641.97,0.00069979,120]
[340746707,1729771846938,-641.97,0.00069979,120]
[340746708,1729771846948,-103510.43409088,0.0006998,78]
[340746709,1729771846963,-96489.56590912,0.0006998,78]
[340746710,1729771846972,-200000.0,0.0006998,68]
[340746711,1729771846981,-151.0,0.0006998,120]
[340746712,1729771846991,-500.0,0.00069989,120]
[340746713,1729771847001,-485.65735124,0.00069989,120]
[340746714,1729771847010,-2085.95,0.00069989,120]
[340746715,1729771847021,-500.0,0.00069989,120]
[340746716,1729771847030,-751.87,0.00069989,120]
[340746717,1729771847040,-815.34,0.00069989,120]
[340746718,1729771847049,-500.0,0.00069989,120]
[340746719,1729771847058,-500.0,0.00069989,120]
[340746720,1729771847068,-641.97,0.00069989,120]
[340746721,1729771847078,-200000.0,0.0006999,98]
[340746722,1729771847087,-507.89559044,0.00069995,120]
[340746723,1729771847096,-2085.95,0.00069995,120]
[340746724,1729771847105,-2085.95,0.00069995,120]
[340746725,1729771847115,-2085.95,0.00069995,120]
[340746726,1729771847124,-2085.95,0.00069995,120]
[340746727,1729771847133,-2085.95,0.00069995,120]
[340746728,1729771847143,-2085.95,0.00069995,120]
[340746729,1729771847152,-2085.95,0.00069995,120]
[340746730,1729771847161,-2085.95,0.00069995,120]
[340746731,1729771847170,-2086.05014393,0.00069995,120]
[340746732,1729771847180,-336.84000001,0.00069995,120]
[340746733,1729771847189,-751.87,0.00069995,120]
[340746734,1729771847199,-751.87,0.00069995,120]